Cogmind - Beta 15 @@@ ROGUE MODE // 2025.09.10 @ 14:36:46 Player: Ether Result: Destroyed by Y-45 Defender with Heavy Assault Rifle Performance ------------- Evolutions (2) 1000 Regions Visited (4) 800 Robots Destroyed (12) 60 Value Destroyed (215) 215 Prototype IDs (2) 40 Alien Tech Used (0) 0 Bonus (0) 0 TOTAL SCORE: 2115 Bonus ------- None Cogmind --------- Core Integrity 0/550 Matter 7/300 Energy 98/100 System Corruption 0% Temperature Cool (9) Movement Core (50) Location -8/Materials Parts ------- > --- POWER (2) -------- (None) > --- PROPULSION (3) --- (None) > --- UTILITY (4) ------ Visual Processing Unit Improved Sensor Array Improved Targeting Computer > --- WEAPON (2) ------- (None) > --- INVENTORY (5) ---- Light Ion Engine Heavy Ion Engine Light Deuterium Engine Advanced Targeting Computer Datajack Peak State ------------ > --- POWER ------------ Light Ion Engine > --- PROPULSION ------- Aluminum Leg Aluminum Leg > --- UTILITY ---------- Small Storage Unit Visual Processing Unit Improved Terrain Scanner Seismic Detector > --- WEAPON ----------- Improved Grenade Launcher Improved Grenade Launcher > --- INVENTORY -------- Light Ion Engine Light Ion Engine Heavy Ion Engine Beam Rifle Light Assault Rifle Datajack Mining Laser Mining Laser [Rating: 17] Favorites ----------- Power Light Ion Engine Engine Light Ion Engine Propulsion Aluminum Leg Leg Aluminum Leg Utility Small Storage Unit Device Improved Terrain Scanner Storage Small Storage Unit Processor Visual Processing Unit Weapon Light Assault Rifle Energy Gun Beam Rifle Ballistic Gun Light Assault Rifle Launcher Improved Grenade Launcher Build | -11 -10 -10 -9 -8 ------- Run | Yrd Mat Min Mat Mat Slots Evolved 4 | . . . 2 2 Power 1 | . . . . 1 Propulsion 1 | . . . . 1 Utility 2 | . . . 2 . Weapon . | . . . . . Parts Attached 16 | 9 . . 5 2 Power 1 | 1 . . . . Engine 1 | 1 . . . . Core . | . . . . . Reactor . | . . . . . Propulsion 2 | 2 . . . . Treads . | . . . . . Leg 2 | 2 . . . . Wheel . | . . . . . Hover . | . . . . . Flight . | . . . . . Utility 7 | 4 . . 1 2 Device 4 | 3 . . . 1 Storage 1 | 1 . . . . Processor 2 | . . . 1 1 Hackware . | . . . . . Protection . | . . . . . Artifact . | . . . . . Weapon 6 | 2 . . 4 . Energy Gun 1 | . . . 1 . Energy Cannon . | . . . . . Ballistic Gun 3 | 2 . . 1 . Ballistic Cannon . | . . . . . Launcher 2 | . . . 2 . Special Weapon . | . . . . . Impact Weapon . | . . . . . Slashing Weapon . | . . . . . Piercing Weapon . | . . . . . Special Melee Weapon . | . . . . . Unidentified Prototypes . | . . . . . Parts Lost 8 | . . . 6 2 Power 1 | . . . 1 . Propulsion 2 | . . . 2 . Utility 2 | . . . 1 1 Weapon 3 | . . . 2 1 Highest Loss Streak 6 | . . . 6 2 To Critical Strikes . | . . . . . Average Backups 6 | 4 8 8 7 5 Power 2 | 1 2 2 2 3 Propulsion . | 1 1 . . . Utility . | . 1 2 . . Weapon 2 | 1 3 3 3 . Tool/Special . | . . . . . Unused Backups 10 | . 2 . 1 7 Power 4 | . . . . 4 Propulsion 2 | . 2 . . . Utility 1 | . . . . 1 Weapon 2 | . . . 1 1 Tool/Special 1 | . . . . 1 Average Slot Usage (%) 82 | . 100 100 94 22 Engine 9 | . 14 14 9 . Leg 19 | . 28 28 20 . Device 15 | . 14 14 20 6 Storage 9 | . 14 14 10 . Processor 6 | . . . 11 11 Ballistic Gun 14 | . 28 28 5 4 Launcher 5 | . . . 14 . Peak Build Rating 17 | 9 9 9 17 8 Average Rating 9 | 6 9 9 15 5 On Entrance 6 | . 9 9 9 6 Naked Turns . | . . . . . Heaviest Build 22 | 12 12 12 22 2 Greatest Support 20 | 20 20 20 20 3 Greatest Overweight (x) 3 | 1 . . 3 . Average Overweight (x) . | . . . . . Largest Inventory Capacity 8 | 8 8 8 8 5 Average Capacity 7 | 7 8 8 7 5 Most Carried 8 | 8 8 8 8 5 Average Carried 6 | 5 7 8 7 4 Final Capacity 8 | 8 8 8 5 5 Final Carried 8 | 8 8 8 5 5 Class Distribution -------------------- 100% | Mutant Dominant Class ---------------- Mutant | -10/Materials Mutant | -10/Mines Mutant | -9/Materials Mutant | -8/Materials Resources | -11 -10 -10 -9 -8 ----------- Run | Yrd Mat Min Mat Mat Matter Collected 382 | 362 20 . . . Remotely 14 | 14 . . . . Salvage Created 276 | 227 21 . 28 . Parts 23 | 19 2 . 2 . Haulers Intercepted . | . . . . . Recyclers Shooed 1 | . . . 1 . Parts Field Recycled . | . . . . . Retrieved Matter . | . . . . . Parts Self-Destructed . | . . . . . Prevented . | . . . . . Kills | -11 -10 -10 -9 -8 ------- Run | Yrd Mat Min Mat Mat Combat Hostiles Destroyed 3 | . . . 3 . AOE 3 | . . . 3 . Classes Destroyed 5 | 2 1 . 2 . Tunneler 7 | 7 . . . . Recycler 1 | 1 . . . . Watcher 1 | . 1 . . . Grunt 1 | . . . 1 . Sentry 2 | . . . 2 . Best Kill Streak 4 | 4 1 . 1 . Combat Bots Only 1 | . . . 1 . Max Kills in Single Turn 1 | 1 1 . 1 . Gunslinging . | . . . . . Exploded 1 | . . . 1 . Melee . | . . . . . Uniques/NPCs Destroyed . | . . . . . Combat | -11 -10 -10 -9 -8 -------- Run | Yrd Mat Min Mat Mat Hostile Shots Fired 176 | . 3 10 52 111 Missed 74 | . 1 6 17 50 Hits 102 | . 2 4 35 61 Projectile 102 | . 2 4 35 61 Damage Taken 1530 | . 19 60 786 665 Core 815 | . . 18 240 557 Absorbed by Shields . | . . . . . Regen/Repaired (Parts) 41 | . . . 41 . Core Remaining (%) 77 | 100 . 92 40 . Volleys Fired 34 | 18 5 . 11 . Largest 2 | 2 2 . 2 . Hottest 72 | 40 40 . 72 . Shots Fired 66 | 36 10 . 20 . Gun 46 | 36 10 . . . Cannon . | . . . . . Launcher 20 | . . . 20 . Special . | . . . . . Kinetic 46 | 36 10 . . . Thermal . | . . . . . Explosive 20 | . . . 20 . Electromagnetic . | . . . . . Robot Hit Streak 7 | 7 2 . 7 . Robot Miss Streak 4 | 2 4 . 1 . Penetration Max . | . . . . . Secondary Targets . | . . . . . Shots Hit Robots 48 | 28 4 . 16 . Core Hits 19 | 11 2 . 6 . Critical Kills . | . . . . . Critical Parts Destroyed . | . . . . . Critical Strikes . | . . . . . Melee Attacks . | . . . . . Impact . | . . . . . Slashing . | . . . . . Piercing . | . . . . . Sneak Attacks . | . . . . . Combat Hostiles . | . . . . . Follow-up Attacks . | . . . . . Damage Inflicted 947 | 279 48 . 613 7 Guns 327 | 279 48 . . . Cannons . | . . . . . Explosions 606 | . . . 606 . Melee . | . . . . . Ramming 14 | . . . 7 7 Kinetic 327 | 279 48 . . . Thermal . | . . . . . Explosive 606 | . . . 606 . Electromagnetic . | . . . . . Impact . | . . . . . Slashing . | . . . . . Piercing . | . . . . . Highest Corruption . | . . . . . Average Corruption . | . . . . . Corruption Purged . | . . . . . Corruption Blocked . | . . . . . Overload Shots . | . . . . . Overflow Damage 25 | . . . 25 . Projectiles . | . . . . . Explosions 25 | . . . 25 . Melee . | . . . . . Knockbacks 1 | . . . . 1 Impact 1 | . . . . 1 Kinetic . | . . . . . Secondary . | . . . . . Self-Inflicted Damage 330 | . . . 327 3 Shots 11 | . . . 11 . Rammed 1 | . . . . 1 Targets Rammed 2 | . . . 1 1 Kicked 1 | . . . 1 . Crushed . | . . . . . Highest Temperature 48 | . . . 48 . Average Temperature 20 | . . . 20 . Received Heat Transfer 342 | . . 33 183 126 Siege Activations . | . . . . . Martial Activations . | . . . . . Shielding Activations . | . . . . . Robots Disrupted . | . . . . . Combat Hostiles . | . . . . . Robots Corrupted . | . . . . . Combat Hostiles . | . . . . . Parts Fried . | . . . . . Impact Corruptions . | . . . . . Robots Melted . | . . . . . Combat Hostiles . | . . . . . Parts Melted . | . . . . . Heat Transferred . | . . . . . Parts Sabotaged . | . . . . . Parts Stolen . | . . . . . Parts Stripped . | . . . . . Power Chain Reactions . | . . . . . Alert | -11 -10 -10 -9 -8 ------- Run | Yrd Mat Min Mat Mat Maximum Alert Level . | . . . . . Low Security (%) 100 | 100 100 100 100 100 Level 1 . | . . . . . Level 2 . | . . . . . Level 3 . | . . . . . Level 4 . | . . . . . Level 5 . | . . . . . High Security . | . . . . . Max Security . | . . . . . Peak Influence 155 | 10 11 . 115 155 Initial . | . . . . . Average 20 | 1 . . 38 48 Influence Increases 509 | 40 23 . 201 245 Destroy 0b10 Robot/C 60 | . . . 60 . Destroy 0b10 Robot/NC 45 | 40 5 . . . Destroy Leader 32 | . 2 . 30 . Successful Hack 21 | . 16 . . 5 Disable Machine 30 | . . . 30 . Destroy Structure 81 | . . . 81 . Partial Spotted 15 | . . . . 15 Lose Combat Pursuer 225 | . . . . 225 Influence Decreases 354 | 40 23 . 201 90 Time Decay 291 | 40 23 . 158 70 Lost Part 63 | . . . 43 20 Squads Dispatched 4 | . 1 . 2 1 Investigation 3 | . . . 2 1 Extermination . | . . . . . Reinforcement 1 | . 1 . . . Assault . | . . . . . Garrison . | . . . . . Intercept . | . . . . . Searches Triggered . | . . . . . Construction Impeded . | . . . . . Haulers Reinforced . | . . . . . Active Scanning Responses . | . . . . . Cargo Convoy Interrupts . | . . . . . Stealth | -11 -10 -10 -9 -8 --------- Run | Yrd Mat Min Mat Mat Distress Signals 3 | . . . 1 2 Communications Jammed . | . . . . . Distress Signals . | . . . . . Times Spotted 45 | . 5 4 6 30 Peak Tracking Total 15 | . 3 4 3 15 Tactical Retreats 5 | . . . . 5 Traps | -11 -10 -10 -9 -8 ------- Run | Yrd Mat Min Mat Mat Traps Triggered 2 | . . . 1 1 Indirectly . | . . . . . Trap Hack Attempts . | . . . . . Triggered . | . . . . . Disarmed . | . . . . . Reprogrammed . | . . . . . Reused . | . . . . . Traps Extracted . | . . . . . Installed . | . . . . . Triggered . | . . . . . Machines | -11 -10 -10 -9 -8 ---------- Run | Yrd Mat Min Mat Mat Machines Disabled 2 | . . . 2 . Max in Single Turn 1 | . . . 1 . Machines Repaired . | . . . . . Machines Dismantled . | . . . . . Machines Sabotaged . | . . . . . Overloaded Fab Kills . | . . . . . Hacking | -11 -10 -10 -9 -8 --------- Run | Yrd Mat Min Mat Mat Machines Accessed 9 | . 3 . 3 3 Terminals 7 | . 2 . 2 3 Fabricators . | . . . . . Repair Stations 1 | . . . 1 . Recycling Units 1 | . 1 . . . Scanalyzers . | . . . . . Garrison Access . | . . . . . Total Hacks 26 | . 11 . 6 9 Successful 14 | . 7 . 3 4 Failed 12 | . 4 . 3 5 Catastrophic . | . . . . . Database Lockouts . | . . . . . Manual 8 | . 4 . 2 2 Terminals 24 | . 10 . 5 9 Fabricators . | . . . . . Repair Stations 1 | . . . 1 . Recycling Units 1 | . 1 . . . Scanalyzers . | . . . . . Garrison Access . | . . . . . Terminal Hacks 11 | . 5 . 2 4 Record 1 | . . . 1 . Robot Analysis 1 | . . . . 1 Prototype ID Bank 1 | . 1 . . . Emergency Access Points 1 | . 1 . . . Alert Level 1 | . 1 . . . Locate Traps 1 | . . . 1 . Maintenance Status 1 | . 1 . . . Transport Status 1 | . . . . 1 Investigation Status 1 | . . . . 1 Recall Investigation 1 | . . . . 1 Hauler Manifests 1 | . 1 . . . Fabricator Hacks . | . . . . . Repair Station Hacks . | . . . . . Recycling Unit Hacks . | . . . . . Scanalyzer . | . . . . . Garrison Access Hacks . | . . . . . Unauthorized Hacks 2 | . 1 . 1 . Terminals 1 | . 1 . . . Assimilate 1 | . 1 . . . Fabricators . | . . . . . Repair Stations 1 | . . . 1 . Patch 1 | . . . 1 . Recycling Units . | . . . . . Scanalyzers . | . . . . . Garrison Access . | . . . . . Data Cores Recovered . | . . . . . Used . | . . . . . Hacking Detections 7 | . 2 . 2 3 Full Trace Events 1 | . . . 1 . Feedback Events . | . . . . . Feedback Blocked . | . . . . . Robot Schematics Acquired . | . . . . . Robots Built . | . . . . . Authchips . | . . . . . Time . | . . . . . Total Robot Build Rating . | . . . . . Part Schematics Acquired . | . . . . . Parts Built . | . . . . . Authchips . | . . . . . Time . | . . . . . Total Part Build Rating . | . . . . . Parts Repaired . | . . . . . Time . | . . . . . Parts Recycled . | . . . . . Recycled Matter . | . . . . . Retrieved Matter . | . . . . . Retrieved Components . | . . . . . Parts Scanalyzed . | . . . . . Part Schematics Acquired . | . . . . . Parts Damaged . | . . . . . Bothacking | -11 -10 -10 -9 -8 ------------ Run | Yrd Mat Min Mat Mat Used RIF Installer . | . . . . . Robots Hacked . | . . . . . Non-combat . | . . . . . Combat . | . . . . . Robot Hacks Applied . | . . . . . Relay Couplers Released . | . . . . . Fabnet Peak Effective % . | . . . . . Robots Rewired . | . . . . . Allies Hacked . | . . . . . Hacks Repelled . | . . . . . Allies | -11 -10 -10 -9 -8 -------- Run | Yrd Mat Min Mat Mat Total Allies . | . . . . . Largest Group . | . . . . . Highest-Rated Group . | . . . . . Highest-Rated Ally . | . . . . . Total Orders . | . . . . . Ally Attacks . | . . . . . Total Damage . | . . . . . Kills . | . . . . . Allies Corrupted . | . . . . . Allies Melted . | . . . . . Intel | -11 -10 -10 -9 -8 ------- Run | Yrd Mat Min Mat Mat Active Infowar (turns) 1302 | 216 404 29 435 218 Optics 651 | . . . 433 218 Sensors 54 | . . . . 54 Terrain 983 | 21 404 29 435 94 Seismic 583 | 195 . . 388 . Robot Analysis Total 1 | . . . . 1 Derelict Logs Recovered . | . . . . . Drone Launches . | . . . . . Drone Recoveries . | . . . . . Exploration | -11 -10 -10 -9 -8 ------------- Run | Yrd Mat Min Mat Mat Turns Passed 1399 | 313 404 29 435 218 Spaces Moved 1016 | 155 198 24 227 412 Core 446 | 14 . . 20 412 Treads . | . . . . . Legs 570 | 141 198 24 207 . Wheels . | . . . . . Hover . | . . . . . Flight . | . . . . . Fastest Speed 50 | 50 120 120 50 50 Average Speed 100 | 114 120 120 162 50 Slowest Speed 200 | 120 120 120 200 50 Overloaded Moves . | . . . . . Propulsion Burnouts . | . . . . . Robots Hopped . | . . . . . Potential Cave-ins . | . . . . . Cave-ins Triggered . | . . . . . Exploration Rate (%) 26 | 9 29 12 25 56 Regions Visited 4 Branch Regions 1 Pre-discovered Areas . | . . . . . Known Exits Taken . | . . . . . Unknown Exits Taken 4 | 1 1 1 1 . Scrap Searched . | . . . . . Spaces Dug . | . . . . . Terrain Destroyed 85 | . . . 85 . Melee . | . . . . . Projectile . | . . . . . AOE 85 | . . . 85 . Terrain Rammed . | . . . . . Walls Destroyed . | . . . . . Machines Disabled . | . . . . . Actions | -11 -10 -10 -9 -8 --------- Run | Yrd Mat Min Mat Mat Total 1333 | 258 356 24 271 424 Wait 239 | 62 150 1 21 5 Move 1012 | 154 197 23 226 412 Hop . | . . . . . Pick Up 20 | 14 2 . 2 2 Fast Attach 6 | 2 . . 2 2 Attach 10 | 6 . . 4 . Detach . | . . . . . Swap 1 | 1 . . . . Drop 9 | 1 2 . 4 2 Fire 34 | 18 5 . 11 . Melee . | . . . . . Ram 1 | . . . . 1 Kick 1 | . . . 1 . Crush . | . . . . . Escape Stasis . | . . . . . Rewire . | . . . . . Trap . | . . . . . Miscellaneous . | . . . . . Route ------- -11/Scrapyard -10/Materials -10/Mines -9/Materials -8/Materials History --------- Turn | Location | Event 32 | -11/Scrapyard | Discovered new exit (range 15) 314 | -11/Scrapyard | Entered Materials 315 | -10/Materials | Build established: Mutant 701 | -10/Materials | Discovered new exit (range 7) 718 | -10/Materials | Entered Mines 739 | -10/Mines | Discovered new exit (range 8) 747 | -10/Mines | Entered Materials 747 | -9/Materials | Evolved 2 slots: Utility x2 1161 | -9/Materials | Discovered new exit (range 18) 1170 | -9/Materials | Core integrity fell below 50% 1182 | -9/Materials | Entered another Materials area 1182 | -8/Materials | Evolved 2 slots: Power x1, Propulsion x1 1189 | -8/Materials | Lost 6 parts (1p2n1u2w) 1362 | -8/Materials | Core integrity fell below 50% 1376 | -8/Materials | Core integrity fell below 20% 1400 | -8/Materials | Destroyed by Y-45 Defender with Heavy Assault Rifle Last Messages --------------- 01299_ ALERT: Alarm triggered, dispatching investigation squad. 01302_ K-01 Serf collects debris. 01307_ S-10 Pest destroyed. 01309_ K-01 Serf collects debris. 01323_ U-05 Engineer lays Concrete. 01328_ Dropped Mining Laser. 01330_ Acquired Adv. Targeting Computer. 01333_ Acquired Imp. Targeting Computer. 01345_ Acquired Imp. Sensor Array. 01358_ K-01 Serf collects debris. 01362_ K-01 Serf destroyed. 01362_ K-01 Serf collects debris. 01362_ W-25 Informer sends out distress signal. 01369_ K-01 Serf collects debris. 01394_ Purification Channel disabled. 01396_ Slammed into L-31 Rogue. 01396_ L-31 Rogue knocked back. 01396_ Destabilizing: Core damaged (-16). 01398_ K-01 Serf collects debris. Map ----- +----------------------------------------------------+ | ????????????# !# # +????? | | ????????????# # """ ## = #???? | | ????????????# "T" # """ ## #??? | | ????????????# """ # """ #? [[ #?? | | ????????????# # #???[ ???? | | ????????????####+######+########/###### | | ???#????????# | | ????????????# | | ????????????# | | ????????????##################### | | ????????????????#??#????????????# | | ??????????????????#?????#???????# | | ????????????????????????????????# | | ????????????????#???????????????# | | ????????#???????????????????????# | | ???????????#??????????########### ! | | ??????????????????????# | | ??????????????????????# | | ?????????????######???# | | ?????????????# #???# | | ?????????????# #???# | | ############## #???# ########+####T### | | # # #???# ## ####### | | # """ """ # #???# ## """ # = != | | # """""""" # ##### ## """ !# != | | # """"" " # = @ ## """ # = | | # ? ?# l ## # ] | | # / gg s " ## """ # ! | | # #g "G" ## """ ##+#### | | # # " " ## """ ## #??? | | # ## Y ## ## #??? | | # ## g ####+####### #??# | | # ## ##?# #?????# #?#? | | # ## #??# #???#?# #??? | | ############### Y#### ###???# #??? | | ??????????????# ##### #### | | ??????????????# g | | ??????????????# ##### | | ??????????????# ############ | | ?????##???????# Y # """ ## "T" | | ????? ?????# g # "R" ## """ | | ?????? ????# # [// " " ##! | | ?????? """ ??## #=[/ + | | ?????? """ ?# /%[/ ##+#### | | ????"" """ # # ! / # T # | | # + # # + | | ????"" """ # # / """# | | ?????? """ # # ######### """# | | ?????? """ ?#####+############????#??# """# | | ?????? ?# #???????????????# # | +----------------------------------------------------+ Best States ------------- Heat Dissipation 31 Energy Generation 10 Energy Capacity 125 Matter Stores 300 Matter Capacity 300 Sight Range 18 Robot Scan Range 15 Terrain Scan Range 16 Terrain Scan Density 10 Evasion (%) 55 Item Schematics ----------------- None Robot Schematics ------------------ None Fabricated ------------ Nothing Repaired ---------- Nothing Alien Tech Used ----------------- None Achievements -------------- None Challenges ------------ None Game ------ Seed LargeActuatorKit Manual? 0 Play Time 00:18:07 Cumulative 25.9 hours Start 2025.09.10 @ 14:22:33 End 2025.09.10 @ 14:36:46 Sessions 1 Manual Loads 0 Difficulty Rogue Special Mode None Game No. 59 Rogue 59 Adventurer 0 Explorer 0 Win Type - Total 0 Types 0/0/0/0/0/0/0/0/0/0 Lore% 25 Gallery% 23 Achievement% 20 Wizard Run 0 Options --------- Layout 1 ASCII 0 Keyboard 0 Movement Numpad Keybinds 0 Fullscreen 1 Font 24/Smallcaps Map View 50x35 Zoom Use 0% Tactical HUD 1 Map Filters NONE Filters NONE Steam 1 RUN: f7c4e44d-54e0-4cc5-bdfb-015adb15391f